[Event "Titled Tuesday Blitz May 9 Late 2023"]
[White "Demchenko, Anton"]
[Black "Seemann, Jakub"]
[WhiteFideId "4160258"]
[BlackFideId "21874697"]
[WhiteElo "2545"]
[BlackElo "2364"]
[Result "1/2-1/2"]
[Round "11"]
[TimeControl "180+2"]
[Date "2023.05.09"]
[WhiteClock "0:00:06"]
[BlackClock "0:00:06"]

1. e4 {[%clk 0:02:57]}  c6 {[%clk 0:02:59]} 2. d4 {[%clk 0:02:57]}  d5 {[%clk 0:02:59]} 3. e5 {[%clk 0:02:57]}  Bf5 {[%clk 0:02:59]} 4. Bd3 {[%clk 0:02:58]}  Bxd3 {[%clk 0:02:59]} 5. Qxd3 {[%clk 0:02:59]}  Qa5+ {[%clk 0:02:55]} 6. c3 {[%clk 0:02:59]}  e6 {[%clk 0:02:53]} 7. Ne2 {[%clk 0:02:59]}  Ne7 {[%clk 0:02:53]} 8. O-O {[%clk 0:02:59]}  Qa6 {[%clk 0:02:51]} 9. Qd1 {[%clk 0:02:59]}  Nd7 {[%clk 0:02:51]} 10. Nd2 {[%clk 0:02:58]}  c5 {[%clk 0:02:50]} 11. Nf3 {[%clk 0:02:58]}  Nc6 {[%clk 0:02:50]} 12. a3 {[%clk 0:02:57]}  cxd4 {[%clk 0:02:42]} 13. cxd4 {[%clk 0:02:57]}  Be7 {[%clk 0:02:36]} 14. Be3 {[%clk 0:02:45]}  O-O {[%clk 0:02:35]} 15. Nf4 {[%clk 0:02:41]}  Qb5 {[%clk 0:02:24]} 16. Rb1 {[%clk 0:02:38]}  a5 {[%clk 0:02:24]} 17. a4 {[%clk 0:02:07]}  Qa6 {[%clk 0:02:21]} 18. h4 {[%clk 0:02:05]}  b5 {[%clk 0:02:20]} 19. Nh5 {[%clk 0:01:43]}  bxa4 {[%clk 0:02:06]} 20. Qxa4 {[%clk 0:01:44]}  Qc4 {[%clk 0:01:58]} 21. Qd1 {[%clk 0:01:42]}  Nb4 {[%clk 0:01:54]} 22. Rc1 {[%clk 0:01:40]}  Qd3 {[%clk 0:01:52]} 23. Rc7 {[%clk 0:01:36]}  Rfd8 {[%clk 0:01:45]} 24. Qc1 {[%clk 0:01:03]}  Qg6 {[%clk 0:01:06]} 25. Nf4 {[%clk 0:01:02]}  Qf5 {[%clk 0:01:06]} 26. Rd1 {[%clk 0:00:47]}  Bf8 {[%clk 0:01:05]} 27. Ne2 {[%clk 0:00:40]}  h6 {[%clk 0:00:52]} 28. Ng3 {[%clk 0:00:36]}  Qh7 {[%clk 0:00:51]} 29. Qd2 {[%clk 0:00:26]}  Nb6 {[%clk 0:00:51]} 30. b3 {[%clk 0:00:21]}  a4 {[%clk 0:00:51]} 31. bxa4 {[%clk 0:00:21]}  Nc4 {[%clk 0:00:51]} 32. Qe2 {[%clk 0:00:20]}  Rxa4 {[%clk 0:00:51]} 33. Nh2 {[%clk 0:00:20]}  Ra2 {[%clk 0:00:48]} 34. Qf3 {[%clk 0:00:19]}  Qc2 {[%clk 0:00:03]} 35. Rf1 {[%clk 0:00:19]}  Nxe5 {[%clk 0:00:02]} 36. dxe5 {[%clk 0:00:09]}  Qxc7 {[%clk 0:00:02]} 37. Ng4 {[%clk 0:00:09]}  Qd7 {[%clk 0:00:01]} 38. Bxh6 {[%clk 0:00:09]}  Ra3 {[%clk 0:00:01]} 39. Qxa3 {[%clk 0:00:08]}  Nc6 {[%clk 0:00:02]} 40. Qf3 {[%clk 0:00:08]}  Nd4 {[%clk 0:00:02]} 41. Qd1 {[%clk 0:00:07]}  Nf5 {[%clk 0:00:03]} 42. Bg5 {[%clk 0:00:07]}  Rc8 {[%clk 0:00:03]} 43. Nxf5 {[%clk 0:00:07]}  exf5 {[%clk 0:00:04]} 44. Ne3 {[%clk 0:00:08]}  d4 {[%clk 0:00:05]} 45. Qd2 {[%clk 0:00:04]}  Qa7 {[%clk 0:00:04]} 46. Nc2 {[%clk 0:00:03]}  Qa2 {[%clk 0:00:04]} 47. Qxd4 {[%clk 0:00:02]}  Qxc2 {[%clk 0:00:04]} 48. Qf4 {[%clk 0:00:03]}  Qe4 {[%clk 0:00:04]} 49. Qg3 {[%clk 0:00:02]}  Rc4 {[%clk 0:00:03]} 50. Qe3 {[%clk 0:00:02]}  Qxe3 {[%clk 0:00:02]} 51. fxe3 {[%clk 0:00:02]}  Re4 {[%clk 0:00:03]} 52. Rxf5 {[%clk 0:00:02]}  g6 {[%clk 0:00:03]} 53. Rf1 {[%clk 0:00:02]}  Rxe5 {[%clk 0:00:04]} 54. Kf2 {[%clk 0:00:02]}  Rf5+ {[%clk 0:00:03]} 55. Bf4 {[%clk 0:00:02]}  Ra5 {[%clk 0:00:04]} 56. g3 {[%clk 0:00:02]}  Ra2+ {[%clk 0:00:05]} 57. Kf3 {[%clk 0:00:02]}  Be7 {[%clk 0:00:05]} 58. Rd1 {[%clk 0:00:03]}  Ra4 {[%clk 0:00:05]} 59. Rd7 {[%clk 0:00:04]}  Kf8 {[%clk 0:00:06]} 60. Rb7 {[%clk 0:00:04]}  Ke8 {[%clk 0:00:06]} 61. Be5 {[%clk 0:00:02]}  Ra2 {[%clk 0:00:05]} 62. Bf4 {[%clk 0:00:02]}  Rc2 {[%clk 0:00:06]} 63. Rb8+ {[%clk 0:00:03]}  Kd7 {[%clk 0:00:06]} 64. Rb5 {[%clk 0:00:04]}  Ke6 {[%clk 0:00:06]} 65. Ra5 {[%clk 0:00:04]}  Rc1 {[%clk 0:00:06]} 66. Ra6+ {[%clk 0:00:04]}  Kd7 {[%clk 0:00:06]} 67. Ra7+ {[%clk 0:00:05]}  Ke6 {[%clk 0:00:07]} 68. Ke4 {[%clk 0:00:04]}  f5+ {[%clk 0:00:07]} 69. Kf3 {[%clk 0:00:04]}  Rf1+ {[%clk 0:00:07]} 70. Ke2 {[%clk 0:00:04]}  Rb1 {[%clk 0:00:08]} 71. Ra6+ {[%clk 0:00:05]}  Kf7 {[%clk 0:00:09]} 72. Kf3 {[%clk 0:00:04]}  Rd1 {[%clk 0:00:07]} 73. Rb6 {[%clk 0:00:04]}  Ra1 {[%clk 0:00:07]} 74. Rc6 {[%clk 0:00:04]}  Rf1+ {[%clk 0:00:07]} 75. Ke2 {[%clk 0:00:04]}  Rb1 {[%clk 0:00:08]} 76. Rc7 {[%clk 0:00:05]}  Ke6 {[%clk 0:00:07]} 77. Ra7 {[%clk 0:00:06]}  Bc5 {[%clk 0:00:06]} 78. Ra8 {[%clk 0:00:06]}  Rb2+ {[%clk 0:00:06]} 79. Kd3 {[%clk 0:00:06]}  Rb1 {[%clk 0:00:06]} 80. Rc8 {[%clk 0:00:05]}  Be7 {[%clk 0:00:05]} 81. Rg8 {[%clk 0:00:05]}  Kf7 {[%clk 0:00:06]} 82. Ra8 {[%clk 0:00:06]}  Ke6 {[%clk 0:00:06]} 83. Ra7 {[%clk 0:00:06]}  Rd1+ {[%clk 0:00:04]} 84. Ke2 {[%clk 0:00:06]}  Rb1 {[%clk 0:00:05]} 85. Ra6+ {[%clk 0:00:06]}  Kf7 {[%clk 0:00:05]} 86. Rc6 {[%clk 0:00:07]}  Ra1 {[%clk 0:00:05]} 87. Kf3 {[%clk 0:00:07]}  Rf1+ {[%clk 0:00:05]} 88. Ke2 {[%clk 0:00:07]}  Rb1 {[%clk 0:00:06]} 89. Rc4 {[%clk 0:00:07]}  Rb2+ {[%clk 0:00:06]} 90. Kf3 {[%clk 0:00:07]}  Rb1 {[%clk 0:00:07]} 91. e4 {[%clk 0:00:06]}  fxe4+ {[%clk 0:00:07]} 92. Kxe4 {[%clk 0:00:06]}  Bf6 {[%clk 0:00:06]} 93. Kf3 {[%clk 0:00:05]}  Rb3+ {[%clk 0:00:05]} 94. Kg4 {[%clk 0:00:06]}  Rd3 {[%clk 0:00:06]} 95. Rc7+ {[%clk 0:00:06]}  Ke6 {[%clk 0:00:06]} 96. Rc6+ {[%clk 0:00:07]}  Kf7 {[%clk 0:00:06]} 97. Ra6 {[%clk 0:00:08]}  Rb3 {[%clk 0:00:06]} 98. Ra4 {[%clk 0:00:07]}  Rd3 {[%clk 0:00:06]} 99. Re4 {[%clk 0:00:06]}  Rb3 {[%clk 0:00:07]} 100. Re2 {[%clk 0:00:06]}  Rd3 {[%clk 0:00:07]} 101. Rg2 {[%clk 0:00:05]}  Rb3 {[%clk 0:00:08]} 102. Rf2 {[%clk 0:00:06]}  Kg7 {[%clk 0:00:07]} 103. Rc2 {[%clk 0:00:05]}  Kf7 {[%clk 0:00:06]} 104. Rc7+ {[%clk 0:00:06]}  Ke6 {[%clk 0:00:06]} 105. Rc6+ {[%clk 0:00:07]}  Kf7 {[%clk 0:00:06]} 106. Rc4 {[%clk 0:00:07]}  Rd3 {[%clk 0:00:06]} 107. Re4 {[%clk 0:00:06]}  Rb3 {[%clk 0:00:06]} 108. h5 {[%clk 0:00:06]}  gxh5+ {[%clk 0:00:06]} 109. Kxh5 {[%clk 0:00:06]}  Rb5+ {[%clk 0:00:06]} 110. Kg4 {[%clk 0:00:07]}  Kg6 {[%clk 0:00:06]} 111. Re6 {[%clk 0:00:06]}  Kf7 {[%clk 0:00:06]} 112. Ra6 {[%clk 0:00:07]}  Rd5 {[%clk 0:00:06]} 113. Kf3 {[%clk 0:00:07]}  Rb5 {[%clk 0:00:06]} 114. Ke4 {[%clk 0:00:06]}  Rb4+ {[%clk 0:00:06]} 115. Kf5 {[%clk 0:00:06]}  Rb5+ {[%clk 0:00:07]} 116. Kg4 {[%clk 0:00:07]}  Kg6 {[%clk 0:00:07]} 117. Rc6 {[%clk 0:00:05]}  Kf7 {[%clk 0:00:06]} 118. Kf3 {[%clk 0:00:04]}  Rb3+ {[%clk 0:00:05]} 119. Ke4 {[%clk 0:00:05]}  Rb4+ {[%clk 0:00:06]} 120. Kf5 {[%clk 0:00:05]}  Rb5+ {[%clk 0:00:07]} 121. Kg4 {[%clk 0:00:06]}  Kg6 {[%clk 0:00:07]} 122. Rd6 {[%clk 0:00:06]}  Kf7 {[%clk 0:00:07]} 123. Rd3 {[%clk 0:00:06]}  Ra5 {[%clk 0:00:07]} 124. Kf3 {[%clk 0:00:06]}  Rb5 {[%clk 0:00:07]} 125. g4 {[%clk 0:00:07]}  Kg6 {[%clk 0:00:07]} 126. Rd6 {[%clk 0:00:03]}  Kf7 {[%clk 0:00:08]} 127. Ke4 {[%clk 0:00:02]}  Be7 {[%clk 0:00:08]} 128. Ra6 {[%clk 0:00:02]}  Rb4+ {[%clk 0:00:08]} 129. Kf5 {[%clk 0:00:02]}  Rb5+ {[%clk 0:00:07]} 130. Be5 {[%clk 0:00:03]}  Rb1 {[%clk 0:00:07]} 131. g5 {[%clk 0:00:03]}  Rf1+ {[%clk 0:00:07]} 132. Ke4 {[%clk 0:00:03]}  Re1+ {[%clk 0:00:07]} 133. Kd4 {[%clk 0:00:03]}  Rxe5 {[%clk 0:00:08]} 134. Kxe5 {[%clk 0:00:03]}  Bxg5 {[%clk 0:00:08]} 135. Ra7+ {[%clk 0:00:03]}  Be7 {[%clk 0:00:08]} 136. Kf5 {[%clk 0:00:03]}  Kf8 {[%clk 0:00:08]} 137. Ke6 {[%clk 0:00:04]}  Bh4 {[%clk 0:00:07]} 138. Rf7+ {[%clk 0:00:04]}  Kg8 {[%clk 0:00:07]} 139. Rf4 {[%clk 0:00:04]}  Be1 {[%clk 0:00:06]} 140. Rg4+ {[%clk 0:00:04]}  Kf8 {[%clk 0:00:07]} 141. Rg5 {[%clk 0:00:04]}  Bd2 {[%clk 0:00:05]} 142. Rg3 {[%clk 0:00:04]}  Be1 {[%clk 0:00:04]} 143. Rg2 {[%clk 0:00:05]}  Bc3 {[%clk 0:00:04]} 144. Rg5 {[%clk 0:00:04]}  Be1 {[%clk 0:00:04]} 145. Rg4 {[%clk 0:00:04]}  Bd2 {[%clk 0:00:04]} 146. Rg3 {[%clk 0:00:03]}  Bb4 {[%clk 0:00:04]} 147. Rb3 {[%clk 0:00:02]}  Be1 {[%clk 0:00:04]} 148. Rb7 {[%clk 0:00:03]}  Kg8 {[%clk 0:00:04]} 149. Rf7 {[%clk 0:00:03]}  Bc3 {[%clk 0:00:04]} 150. Rf3 {[%clk 0:00:02]}  Bb2 {[%clk 0:00:03]} 151. Rb3 {[%clk 0:00:01]}  Bc1 {[%clk 0:00:03]} 152. Rb7 {[%clk 0:00:02]}  Bg5 {[%clk 0:00:02]} 153. Kf5 {[%clk 0:00:02]}  Bd2 {[%clk 0:00:02]} 154. Kf6 {[%clk 0:00:02]}  Bc3+ {[%clk 0:00:01]} 155. Ke6 {[%clk 0:00:02]}  Bd2 {[%clk 0:00:01]} 156. Rc7 {[%clk 0:00:03]}  Be3 {[%clk 0:00:01]} 157. Rd7 {[%clk 0:00:03]}  Bf4 {[%clk 0:00:01]} 158. Rd4 {[%clk 0:00:03]}  Bc1 {[%clk 0:00:01]} 159. Rg4+ {[%clk 0:00:04]}  Kf8 {[%clk 0:00:01]} 160. Rg2 {[%clk 0:00:04]}  Be3 {[%clk 0:00:01]} 161. Re2 {[%clk 0:00:05]}  Bc1 {[%clk 0:00:02]} 162. Kf6 {[%clk 0:00:04]}  Kg8 {[%clk 0:00:01]} 163. Re8+ {[%clk 0:00:04]}  Kh7 {[%clk 0:00:01]} 164. Re7+ {[%clk 0:00:05]}  Kh6 {[%clk 0:00:01]} 165. Kf5 {[%clk 0:00:04]}  Bb2 {[%clk 0:00:01]} 166. Rf7 {[%clk 0:00:04]}  Ba1 {[%clk 0:00:01]} 167. Rd7 {[%clk 0:00:05]}  Bb2 {[%clk 0:00:01]} 168. Rc7 {[%clk 0:00:06]}  Bd4 {[%clk 0:00:02]} 169. Rb7 {[%clk 0:00:05]}  Bc3 {[%clk 0:00:02]} 170. Rb3 {[%clk 0:00:05]}  Bd4 {[%clk 0:00:02]} 171. Rg3 {[%clk 0:00:06]}  Bb2 {[%clk 0:00:02]} 172. Rg6+ {[%clk 0:00:07]}  Kh7 {[%clk 0:00:02]} 173. Rg4 {[%clk 0:00:06]}  Bc3 {[%clk 0:00:02]} 174. Ke6 {[%clk 0:00:06]}  Bb2 {[%clk 0:00:02]} 175. Kf7 {[%clk 0:00:05]}  Kh6 {[%clk 0:00:03]} 176. Rg6+ {[%clk 0:00:06]}  Kh5 {[%clk 0:00:04]} 177. Rg2 {[%clk 0:00:05]}  Bc3 {[%clk 0:00:04]} 178. Ke6 {[%clk 0:00:06]}  Kh4 {[%clk 0:00:04]} 179. Kf5 {[%clk 0:00:07]}  Kh3 {[%clk 0:00:04]} 180. Rc2 {[%clk 0:00:07]}  Bd4 {[%clk 0:00:05]} 181. Rc4 {[%clk 0:00:06]}  Bg1 {[%clk 0:00:05]} 182. Rf4 {[%clk 0:00:06]}  Kg2 {[%clk 0:00:05]} 183. Ke4 {[%clk 0:00:06]}  Kh1 {[%clk 0:00:06]} 184. Rg4 {[%clk 0:00:06]}  Bh2 {[%clk 0:00:06]} 1/2-1/2


[Site "https://www.chess.com"]

[Event "Titled Tuesday Blitz May 9 Late 2023"]
[White "Naroditsky, Daniel"]
[Black "Mortazavi, Ali"]
[WhiteFideId "2026961"]
[BlackFideId "401323"]
[WhiteElo "2633"]
[BlackElo "2339"]
[Result "1-0"]
[Round "11"]
[TimeControl "180+2"]
[Date "2023.05.09"]
[WhiteClock "0:00:06"]
[BlackClock "0:00:00"]

1. e4 {[%clk 0:03:00]}  c6 {[%clk 0:02:55]} 2. d4 {[%clk 0:03:01]}  d5 {[%clk 0:02:55]} 3. f3 {[%clk 0:03:01]}  Qb6 {[%clk 0:02:55]} 4. Nc3 {[%clk 0:03:02]}  e6 {[%clk 0:02:55]} 5. a3 {[%clk 0:02:58]}  Nd7 {[%clk 0:02:55]} 6. Be3 {[%clk 0:02:55]}  Ngf6 {[%clk 0:02:55]} 7. Bd3 {[%clk 0:02:53]}  Be7 {[%clk 0:02:49]} 8. Nge2 {[%clk 0:02:52]}  dxe4 {[%clk 0:02:49]} 9. fxe4 {[%clk 0:02:51]}  e5 {[%clk 0:02:48]} 10. O-O {[%clk 0:02:50]}  Ng4 {[%clk 0:02:42]} 11. Bd2 {[%clk 0:02:26]}  exd4 {[%clk 0:02:37]} 12. Na4 {[%clk 0:02:27]}  Qc7 {[%clk 0:02:35]} 13. Nf4 {[%clk 0:02:27]}  Nde5 {[%clk 0:02:20]} 14. h3 {[%clk 0:02:27]}  Ne3 {[%clk 0:02:08]} 15. Bxe3 {[%clk 0:02:26]}  dxe3 {[%clk 0:02:08]} 16. Qe2 {[%clk 0:02:25]}  b5 {[%clk 0:02:01]} 17. Nc3 {[%clk 0:02:23]}  Bc5 {[%clk 0:01:55]} 18. Kh1 {[%clk 0:02:19]}  O-O {[%clk 0:01:55]} 19. Nd1 {[%clk 0:02:15]}  Ng6 {[%clk 0:01:41]} 20. Nh5 {[%clk 0:02:13]}  Qe5 {[%clk 0:01:35]} 21. g4 {[%clk 0:02:03]}  Be6 {[%clk 0:01:20]} 22. Nxe3 {[%clk 0:02:02]}  Bxe3 {[%clk 0:01:20]} 23. Qxe3 {[%clk 0:02:03]}  Qxb2 {[%clk 0:01:20]} 24. Rae1 {[%clk 0:01:57]}  Qe5 {[%clk 0:01:19]} 25. Ng3 {[%clk 0:01:49]}  a6 {[%clk 0:01:18]} 26. Nf5 {[%clk 0:01:48]}  c5 {[%clk 0:01:17]} 27. Qg5 {[%clk 0:01:45]}  c4 {[%clk 0:01:06]} 28. Ne7+ {[%clk 0:01:44]}  Nxe7 {[%clk 0:00:56]} 29. Qxe5 {[%clk 0:01:44]}  cxd3 {[%clk 0:00:56]} 30. cxd3 {[%clk 0:01:45]}  Rad8 {[%clk 0:00:56]} 31. Rf3 {[%clk 0:01:45]}  Nc6 {[%clk 0:00:56]} 32. Qc5 {[%clk 0:01:39]}  Nd4 {[%clk 0:00:55]} 33. Rf2 {[%clk 0:01:40]}  Nb3 {[%clk 0:00:48]} 34. Qe3 {[%clk 0:01:35]}  Rd4 {[%clk 0:00:44]} 35. Ref1 {[%clk 0:01:34]}  Rfd8 {[%clk 0:00:44]} 36. Rf3 {[%clk 0:01:08]}  a5 {[%clk 0:00:40]} 37. Qg5 {[%clk 0:01:06]}  b4 {[%clk 0:00:30]} 38. axb4 {[%clk 0:01:07]}  a4 {[%clk 0:00:30]} 39. Qe7 {[%clk 0:01:06]}  R4d7 {[%clk 0:00:25]} 40. Qg5 {[%clk 0:00:54]}  a3 {[%clk 0:00:25]} 41. R1f2 {[%clk 0:00:49]}  h6 {[%clk 0:00:24]} 42. Qe5 {[%clk 0:00:36]}  Rc8 {[%clk 0:00:19]} 43. Rg3 {[%clk 0:00:25]}  Rc1+ {[%clk 0:00:18]} 44. Kh2 {[%clk 0:00:22]}  Nd4 {[%clk 0:00:11]} 45. Qa5 {[%clk 0:00:22]}  a2 {[%clk 0:00:09]} 46. Rg1 {[%clk 0:00:13]}  Rdc7 {[%clk 0:00:06]} 47. Rxc1 {[%clk 0:00:07]}  Rxc1 {[%clk 0:00:06]} 48. Rxa2 {[%clk 0:00:08]}  Bxa2 {[%clk 0:00:05]} 49. Qd8+ {[%clk 0:00:08]}  Kh7 {[%clk 0:00:05]} 50. Qxd4 {[%clk 0:00:09]}  Rc2+ {[%clk 0:00:03]} 51. Kg3 {[%clk 0:00:09]}  Rd2 {[%clk 0:00:00]} 52. Qc3 {[%clk 0:00:06]} 1-0


[Site "https://www.chess.com"]

[Event "Titled Tuesday Blitz May 9 Late 2023"]
[White "MKlose11"]
[Black "Bjelobrk, Igor"]
[BlackFideId "4300726"]
[WhiteElo "2633"]
[BlackElo "2319"]
[Result "0-1"]
[Round "11"]
[TimeControl "180+2"]
[Date "2023.05.09"]
[WhiteClock "0:00:32"]
[BlackClock "0:00:39"]

1. e4 {[%clk 0:03:00]}  e6 {[%clk 0:02:58]} 2. Nf3 {[%clk 0:02:57]}  d5 {[%clk 0:02:57]} 3. e5 {[%clk 0:02:58]}  c5 {[%clk 0:02:45]} 4. b4 {[%clk 0:02:57]}  cxb4 {[%clk 0:02:44]} 5. a3 {[%clk 0:02:57]}  bxa3 {[%clk 0:02:36]} 6. Bxa3 {[%clk 0:02:56]}  Bxa3 {[%clk 0:02:30]} 7. Nxa3 {[%clk 0:02:56]}  Ne7 {[%clk 0:02:31]} 8. Nb5 {[%clk 0:02:53]}  O-O {[%clk 0:02:30]} 9. Nxa7 {[%clk 0:02:48]}  Bd7 {[%clk 0:02:24]} 10. Nb5 {[%clk 0:02:47]}  Rxa1 {[%clk 0:02:19]} 11. Qxa1 {[%clk 0:02:46]}  Bxb5 {[%clk 0:02:06]} 12. Bxb5 {[%clk 0:02:45]}  Qb6 {[%clk 0:02:06]} 13. Be2 {[%clk 0:02:20]}  Ng6 {[%clk 0:01:59]} 14. O-O {[%clk 0:02:11]}  Nc6 {[%clk 0:01:59]} 15. Rb1 {[%clk 0:02:05]}  Qc7 {[%clk 0:01:59]} 16. d4 {[%clk 0:01:59]}  Na5 {[%clk 0:01:43]} 17. Rb2 {[%clk 0:01:23]}  b6 {[%clk 0:01:35]} 18. g3 {[%clk 0:01:20]}  h6 {[%clk 0:01:30]} 19. Bd3 {[%clk 0:01:20]}  Ne7 {[%clk 0:01:30]} 20. Qb1 {[%clk 0:01:17]}  Rb8 {[%clk 0:01:29]} 21. Rb5 {[%clk 0:01:15]}  Nc4 {[%clk 0:01:17]} 22. Qb3 {[%clk 0:01:07]}  Nc6 {[%clk 0:01:01]} 23. Qc3 {[%clk 0:00:48]}  Na7 {[%clk 0:00:55]} 24. Rb1 {[%clk 0:00:44]}  b5 {[%clk 0:00:55]} 25. Qb4 {[%clk 0:00:40]}  Nc6 {[%clk 0:00:40]} 26. Qxc4 {[%clk 0:00:32]}  bxc4 {[%clk 0:00:39]} 0-1


[Site "https://www.chess.com"]

[Event "Titled Tuesday Blitz May 9 Late 2023"]
[White "Gritsenko, Nikolai"]
[Black "Mekhitarian, Krikor Sevag"]
[WhiteFideId "14112493"]
[BlackFideId "2107660"]
[WhiteElo "2389"]
[BlackElo "2604"]
[Result "1/2-1/2"]
[Round "11"]
[TimeControl "180+2"]
[Date "2023.05.09"]
[WhiteClock "0:00:03"]
[BlackClock "0:00:06"]

1. d4 {[%clk 0:03:00]}  Nf6 {[%clk 0:02:54]} 2. Nf3 {[%clk 0:02:59]}  g6 {[%clk 0:02:55]} 3. Bf4 {[%clk 0:02:57]}  Bg7 {[%clk 0:02:55]} 4. c3 {[%clk 0:02:58]}  O-O {[%clk 0:02:55]} 5. e3 {[%clk 0:02:58]}  c5 {[%clk 0:02:55]} 6. Be2 {[%clk 0:02:57]}  d6 {[%clk 0:02:54]} 7. Nbd2 {[%clk 0:02:56]}  Nh5 {[%clk 0:02:41]} 8. Bg3 {[%clk 0:02:53]}  Nd7 {[%clk 0:02:41]} 9. O-O {[%clk 0:02:50]}  Nxg3 {[%clk 0:02:40]} 10. hxg3 {[%clk 0:02:50]}  d5 {[%clk 0:02:36]} 11. a4 {[%clk 0:02:39]}  Qc7 {[%clk 0:02:31]} 12. Rc1 {[%clk 0:02:33]}  e5 {[%clk 0:02:30]} 13. dxe5 {[%clk 0:02:30]}  Nxe5 {[%clk 0:02:30]} 14. Nxe5 {[%clk 0:02:29]}  Qxe5 {[%clk 0:02:26]} 15. Nf3 {[%clk 0:02:25]}  Qd6 {[%clk 0:02:26]} 16. e4 {[%clk 0:02:20]}  Be6 {[%clk 0:02:17]} 17. exd5 {[%clk 0:02:17]}  Qxd5 {[%clk 0:02:16]} 18. Qxd5 {[%clk 0:02:11]}  Bxd5 {[%clk 0:02:16]} 19. Rfd1 {[%clk 0:02:09]}  Rfd8 {[%clk 0:01:51]} 20. Nd2 {[%clk 0:01:55]}  Rd7 {[%clk 0:01:31]} 21. Bb5 {[%clk 0:01:50]}  Re7 {[%clk 0:01:28]} 22. Bc4 {[%clk 0:01:46]}  Bc6 {[%clk 0:01:24]} 23. Bb5 {[%clk 0:01:46]}  Bd5 {[%clk 0:01:12]} 24. Bc4 {[%clk 0:01:45]}  Bxc4 {[%clk 0:01:10]} 25. Nxc4 {[%clk 0:01:44]}  Re4 {[%clk 0:01:10]} 26. b3 {[%clk 0:01:30]}  Re7 {[%clk 0:01:07]} 27. Rd3 {[%clk 0:01:22]}  Rae8 {[%clk 0:00:47]} 28. Ne3 {[%clk 0:00:37]}  Bh6 {[%clk 0:00:43]} 29. Re1 {[%clk 0:00:36]}  Bxe3 {[%clk 0:00:43]} 30. Rexe3 {[%clk 0:00:29]}  Rxe3 {[%clk 0:00:43]} 31. fxe3 {[%clk 0:00:29]}  c4 {[%clk 0:00:34]} 32. bxc4 {[%clk 0:00:29]}  Re7 {[%clk 0:00:35]} 33. Kf2 {[%clk 0:00:28]}  Rc7 {[%clk 0:00:33]} 34. Rd4 {[%clk 0:00:25]}  b6 {[%clk 0:00:34]} 35. Ke2 {[%clk 0:00:20]}  Rc5 {[%clk 0:00:34]} 36. Rd7 {[%clk 0:00:20]}  Ra5 {[%clk 0:00:34]} 37. Kd3 {[%clk 0:00:17]}  Rxa4 {[%clk 0:00:34]} 38. g4 {[%clk 0:00:17]}  Kg7 {[%clk 0:00:33]} 39. g5 {[%clk 0:00:17]}  Ra5 {[%clk 0:00:32]} 40. Rd5 {[%clk 0:00:16]}  Ra2 {[%clk 0:00:31]} 41. Rd7 {[%clk 0:00:15]}  Rxg2 {[%clk 0:00:30]} 42. Rxa7 {[%clk 0:00:15]}  Rxg5 {[%clk 0:00:30]} 43. Rb7 {[%clk 0:00:15]}  h5 {[%clk 0:00:31]} 44. Rxb6 {[%clk 0:00:15]}  h4 {[%clk 0:00:31]} 45. Rb1 {[%clk 0:00:15]}  h3 {[%clk 0:00:21]} 46. Kd4 {[%clk 0:00:13]}  Rh5 {[%clk 0:00:21]} 47. c5 {[%clk 0:00:12]}  g5 {[%clk 0:00:22]} 48. c6 {[%clk 0:00:11]}  g4 {[%clk 0:00:22]} 49. c7 {[%clk 0:00:10]}  h2 {[%clk 0:00:03]} 50. c8=Q {[%clk 0:00:09]}  h1=Q {[%clk 0:00:04]} 51. Qxg4+ {[%clk 0:00:09]}  Kh7 {[%clk 0:00:02]} 52. Rxh1 {[%clk 0:00:09]}  Rxh1 {[%clk 0:00:03]} 53. Qf5+ {[%clk 0:00:09]}  Kg7 {[%clk 0:00:02]} 54. c4 {[%clk 0:00:09]}  Rd1+ {[%clk 0:00:02]} 55. Qd3 {[%clk 0:00:09]}  Rxd3+ {[%clk 0:00:01]} 56. Kxd3 {[%clk 0:00:09]}  Kf6 {[%clk 0:00:02]} 57. Kd4 {[%clk 0:00:09]}  Ke6 {[%clk 0:00:03]} 58. Kc5 {[%clk 0:00:09]}  Ke5 {[%clk 0:00:02]} 59. Kb6 {[%clk 0:00:09]}  Ke4 {[%clk 0:00:02]} 60. c5 {[%clk 0:00:10]}  f5 {[%clk 0:00:03]} 61. c6 {[%clk 0:00:10]}  Kxe3 {[%clk 0:00:03]} 62. c7 {[%clk 0:00:10]}  f4 {[%clk 0:00:04]} 63. c8=Q {[%clk 0:00:10]}  f3 {[%clk 0:00:04]} 64. Qc5+ {[%clk 0:00:10]}  Ke2 {[%clk 0:00:04]} 65. Qe5+ {[%clk 0:00:09]}  Kf1 {[%clk 0:00:04]} 66. Qb5+ {[%clk 0:00:08]}  Kg1 {[%clk 0:00:03]} 67. Qg5+ {[%clk 0:00:08]}  Kf1 {[%clk 0:00:04]} 68. Kc5 {[%clk 0:00:06]}  f2 {[%clk 0:00:04]} 69. Kd4 {[%clk 0:00:06]}  Ke2 {[%clk 0:00:04]} 70. Qe3+ {[%clk 0:00:06]}  Kf1 {[%clk 0:00:04]} 71. Ke4 {[%clk 0:00:04]}  Kg2 {[%clk 0:00:05]} 72. Qf3+ {[%clk 0:00:04]}  Kg1 {[%clk 0:00:05]} 73. Qg3+ {[%clk 0:00:04]}  Kh1 {[%clk 0:00:05]} 74. Qh4+ {[%clk 0:00:04]}  Kg2 {[%clk 0:00:05]} 75. Qg5+ {[%clk 0:00:04]}  Kh1 {[%clk 0:00:04]} 76. Qc1+ {[%clk 0:00:04]}  Kg2 {[%clk 0:00:04]} 77. Qg5+ {[%clk 0:00:04]}  Kh1 {[%clk 0:00:05]} 78. Qh5+ {[%clk 0:00:04]}  Kg2 {[%clk 0:00:05]} 79. Qf3+ {[%clk 0:00:05]}  Kg1 {[%clk 0:00:05]} 80. Qe3 {[%clk 0:00:05]}  Kh1 {[%clk 0:00:05]} 81. Qh3+ {[%clk 0:00:05]}  Kg1 {[%clk 0:00:05]} 82. Qg4+ {[%clk 0:00:05]}  Kh1 {[%clk 0:00:06]} 83. Qe2 {[%clk 0:00:05]}  Kg1 {[%clk 0:00:06]} 84. Qe3 {[%clk 0:00:05]}  Kh1 {[%clk 0:00:06]} 85. Qh3+ {[%clk 0:00:04]}  Kg1 {[%clk 0:00:06]} 86. Qe3 {[%clk 0:00:03]} 1/2-1/2


[Site "https://www.chess.com"]

[Event "Titled Tuesday Blitz May 9 Late 2023"]
[White "Rosen, Eric"]
[Black "Grigoriants, Sergey"]
[WhiteFideId "2032562"]
[BlackFideId "4130804"]
[WhiteElo "2331"]
[BlackElo "2502"]
[Result "1/2-1/2"]
[Round "11"]
[TimeControl "180+2"]
[Date "2023.05.09"]
[WhiteClock "0:00:07"]
[BlackClock "0:00:08"]

1. d4 {[%clk 0:03:00]}  Nf6 {[%clk 0:02:59]} 2. Bf4 {[%clk 0:03:01]}  c5 {[%clk 0:02:59]} 3. e3 {[%clk 0:03:01]}  Nd5 {[%clk 0:02:59]} 4. Bg3 {[%clk 0:02:59]}  Qb6 {[%clk 0:02:58]} 5. c4 {[%clk 0:02:52]}  Qxb2 {[%clk 0:02:44]} 6. Nd2 {[%clk 0:02:30]}  Nc3 {[%clk 0:02:02]} 7. Qc1 {[%clk 0:02:17]}  Qxc1+ {[%clk 0:02:01]} 8. Rxc1 {[%clk 0:02:18]}  Nxa2 {[%clk 0:01:59]} 9. Rb1 {[%clk 0:02:09]}  Nb4 {[%clk 0:01:48]} 10. dxc5 {[%clk 0:01:53]}  N4c6 {[%clk 0:01:48]} 11. Bd3 {[%clk 0:01:37]}  Na6 {[%clk 0:01:42]} 12. Ne4 {[%clk 0:01:30]}  f5 {[%clk 0:01:38]} 13. Nc3 {[%clk 0:01:29]}  e6 {[%clk 0:01:33]} 14. Nb5 {[%clk 0:01:21]}  Bxc5 {[%clk 0:01:32]} 15. Nf3 {[%clk 0:01:06]}  b6 {[%clk 0:01:30]} 16. O-O {[%clk 0:00:59]}  O-O {[%clk 0:01:24]} 17. Rfd1 {[%clk 0:00:58]}  Bb7 {[%clk 0:01:21]} 18. Nd6 {[%clk 0:00:56]}  Bxd6 {[%clk 0:01:04]} 19. Bxd6 {[%clk 0:00:56]}  Rfd8 {[%clk 0:01:05]} 20. c5 {[%clk 0:00:55]}  Nab4 {[%clk 0:00:54]} 21. cxb6 {[%clk 0:00:44]}  Nxd3 {[%clk 0:00:52]} 22. Rxd3 {[%clk 0:00:44]}  Ba6 {[%clk 0:00:45]} 23. Rd2 {[%clk 0:00:25]}  axb6 {[%clk 0:00:45]} 24. Bc7 {[%clk 0:00:26]}  Rdc8 {[%clk 0:00:45]} 25. Rxd7 {[%clk 0:00:25]}  Ra7 {[%clk 0:00:43]} 26. Rxb6 {[%clk 0:00:20]}  Raxc7 {[%clk 0:00:32]} 27. Rxc7 {[%clk 0:00:18]}  Rxc7 {[%clk 0:00:33]} 28. Rxa6 {[%clk 0:00:19]}  Nd4 {[%clk 0:00:15]} 29. Ra1 {[%clk 0:00:09]}  Nxf3+ {[%clk 0:00:11]} 30. gxf3 {[%clk 0:00:10]}  Kf7 {[%clk 0:00:09]} 31. Kg2 {[%clk 0:00:10]}  g5 {[%clk 0:00:09]} 32. Ra8 {[%clk 0:00:10]}  Kf6 {[%clk 0:00:08]} 33. Rf8+ {[%clk 0:00:09]}  Kg7 {[%clk 0:00:08]} 34. Ra8 {[%clk 0:00:07]}  Kf6 {[%clk 0:00:08]} 1/2-1/2


[Site "https://www.chess.com"]